fUST/lending_fUST_20240212
["ID","MTS","AMOUNT","RATE_DAILY","PERIOD"]
[313840008,1707749435148,-1870.86216125,0.00017977,2]
[313840011,1707749435160,-1139.88048057,0.00017977,2]
[313840014,1707749435174,-80982.65402317,0.00017977,2]
[313840017,1707749435183,-12700.58945955,0.00017978,2]
[313840019,1707749435193,-916.13744664,0.00018746,2]
[313840021,1707749435203,-200.0,0.00018875,2]
[313840024,1707749435213,-243.25211718,0.000189,2]
[313840027,1707749435223,-153.3933402,0.000189,2]
[313840030,1707749435233,-873.62268212,0.00019018,2]
[313840032,1707749435242,-162.38458243,0.00019078,2]
[313840034,1707749435254,-820.92321814,0.00019175,2]
[313840036,1707749435263,-722.55577838,0.00019175,2]
[313840038,1707749435273,-481.48241313,0.00019175,2]
[313840039,1707749435282,-206.88391794,0.00019175,2]
[313840042,1707749435292,-1364.18230294,0.00019175,2]
[313840043,1707749435301,-154.90705577,0.00019175,2]
[313840046,1707749435312,-500.0,0.00019176,2]
[313840047,1707749435322,-155.38693248,0.00019176,2]
[313840049,1707749435331,-156.70308559,0.00019176,2]
[313840051,1707749435341,-949.14305323,0.00019176,3]
[313840053,1707749435351,-165.21502962,0.00019178,2]
[313840055,1707749435360,-1043.74162725,0.00019178,5]
[313840057,1707749435369,-500.0,0.00019178,2]
[313840059,1707749435379,-500.0,0.00019178,2]
[313840061,1707749435389,-500.0,0.00019178,2]
[313840063,1707749435399,-500.0,0.00019178,2]
[313840065,1707749435409,-500.0,0.00019178,2]
[313840067,1707749435419,-504.20952575,0.00019178,2]
[313840069,1707749435428,-501.04436325,0.00019178,2]
[313840071,1707749435438,-311.14462462,0.00019178,2]
[313840073,1707749435449,-500.0,0.00019178,2]
[313840075,1707749435458,-500.0,0.00019178,2]
[313840077,1707749435467,-500.0,0.00019178,2]
[313840079,1707749435477,-500.0,0.00019178,2]
[313840081,1707749435487,-500.0,0.00019178,2]
[313840083,1707749435498,-1577.24,0.00019178,2]
[313840085,1707749435508,-797.49,0.00019178,2]
[313840087,1707749435517,-1776.27,0.00019178,2]
[313840089,1707749435527,-500.0,0.00019178,2]
[313840091,1707749435536,-500.0,0.00019178,2]
[313840093,1707749435545,-409.40121779,0.00019178,2]
[313840095,1707749435554,-500.0,0.00019178,2]
[313840097,1707749435564,-500.0,0.00019178,2]
[313840099,1707749435573,-158.72303613,0.00019178,2]
[313840101,1707749435582,-500.0,0.00019178,2]
[313840103,1707749435591,-626.13,0.00019178,2]
[313840105,1707749435601,-500.0,0.00019178,2]
[313840107,1707749435610,-500.0,0.00019178,2]
[313840109,1707749435619,-500.0,0.00019178,2]
[313840111,1707749435629,-987.16,0.00019178,2]
[313840113,1707749435640,-500.0,0.00019178,2]
[313840115,1707749435650,-500.0,0.00019178,2]
[313840117,1707749435660,-500.0,0.00019178,2]
[313840119,1707749435669,-151.0,0.00019178,2]
[313840120,1707749435679,-154.365302,0.00019178,2]
[313840121,1707749435688,-151.0,0.00019178,2]
[313840123,1707749435698,-151.0,0.00019178,2]
[313840125,1707749435709,-500.0,0.00019178,2]
[313840127,1707749435721,-500.0,0.00019178,2]
[313840129,1707749435730,-500.0,0.00019178,2]
[313840131,1707749435740,-500.0,0.00019178,2]
[313840133,1707749435752,-500.0,0.00019178,2]
[313840135,1707749435762,-500.0,0.00019178,2]
[313840137,1707749435772,-500.0,0.00019178,2]
[313840139,1707749435782,-500.0,0.00019178,2]
[313840141,1707749435792,-500.0,0.00019178,2]
[313840143,1707749435802,-500.0,0.00019178,2]
[313840145,1707749435814,-500.0,0.00019178,2]
[313840147,1707749435825,-619.18675954,0.00019178,2]
[313840149,1707749435835,-500.0,0.00019178,2]
[313840151,1707749435845,-7315.02,0.00019178,2]
[313840153,1707749435854,-500.0,0.00019178,2]
[313840155,1707749435864,-13952.79,0.00019178,2]
[313840157,1707749435874,-500.0,0.00019178,2]
[313840159,1707749435883,-337.65468148,0.00019178,2]
[313840161,1707749435893,-5166.43,0.00019178,2]
[313840163,1707749435903,-1669.18,0.00019178,2]
[313840165,1707749435913,-500.0,0.00019178,2]
[313840167,1707749435922,-500.0,0.00019178,2]
[313840169,1707749435932,-151.0,0.00019178,2]
[313840171,1707749435942,-500.0,0.00019178,2]
[313840173,1707749435952,-7676.02,0.00019178,2]
[313840175,1707749435962,-1662.98,0.00019178,2]
[313840177,1707749435972,-500.0,0.00019178,2]
[313840179,1707749435982,-637.47,0.00019178,2]
[313840181,1707749435993,-176.65827073,0.00019178,2]
[313840183,1707749436005,-500.0,0.00019178,2]
[313840185,1707749436015,-597.66,0.00019178,2]
[313840187,1707749436024,-9313.61,0.00019178,2]
[313840189,1707749436034,-3892.94,0.00019178,2]
[313840191,1707749436043,-5421.49,0.00019178,2]
[313840193,1707749436053,-455.491913,0.00019178,2]
[313840195,1707749436062,-455.491913,0.00019178,2]
[313840196,1707749436071,-908.56,0.00019178,2]
[313840197,1707749436080,-6042.87,0.00019178,2]
[313840199,1707749436091,-2948.64,0.00019178,2]
[313840201,1707749436100,-1603.83,0.00019178,2]
[313840203,1707749436110,-502.82677952,0.00019178,2]
[313840205,1707749436120,-98.93870243,0.00019178,2]
[313840207,1707749436134,-431.10129757,0.00019178,2]
[313840209,1707749436144,-852.29,0.00019178,2]
[313840211,1707749436154,-500.0,0.00019178,2]
[313840213,1707749436164,-500.0,0.00019178,2]
[313840215,1707749436174,-1133.51,0.00019178,2]
[313840216,1707749436184,-1196.08172947,0.00019178,2]
[313840671,1707749441610,-981.94827053,0.00019178,2]
[313840672,1707749441620,-1327.26,0.00019178,2]
[313840673,1707749441629,-623.06,0.00019178,2]
[313840674,1707749441641,-566.26,0.00019178,2]
[313840675,1707749441650,-13.78090413,0.00019178,2]
[313840676,1707749441701,-1530.46909587,0.00019178,2]
[313840677,1707749441712,-500.0,0.00019178,2]
[313840678,1707749441722,-500.0,0.00019178,2]
[313840679,1707749441731,-250.0,0.00019178,2]
[313840680,1707749441742,-1535.09,0.00019178,2]
[313840681,1707749441752,-12208.69,0.00019178,2]
[313840682,1707749441762,-169.05068,0.00019178,2]
[313840683,1707749441774,-169.7682398,0.00019178,2]
[313840684,1707749441783,-166.666666,0.00019178,2]
[313840685,1707749441792,-321.8647041,0.000192,2]
[313840686,1707749441802,-200.1182246,0.000192,2]
[313840687,1707749441811,-200.1182246,0.000192,2]
[313840688,1707749441820,-151.0,0.000192,2]
[313840689,1707749441830,-260.3005468,0.00019256,2]
[313840690,1707749441839,-1357.03940194,0.00019352,2]
[313840691,1707749441849,-2717.98041473,0.0001945,5]
[313840692,1707749441858,-158.71984182,0.0001945,2]
[313840693,1707749441868,-154.92253873,0.0001945,2]
[313840694,1707749441878,-728.9649471,0.0001945,2]
[313840695,1707749441887,-678.94138998,0.0001945,2]
[313840696,1707749441897,-155.09926353,0.0001945,2]
[313840697,1707749441907,-500.0,0.00019452,2]
[313840698,1707749441916,-500.0,0.00019452,2]
[313840699,1707749441925,-500.0,0.00019452,2]
[313840700,1707749441935,-500.0,0.00019452,2]
[313840701,1707749441945,-500.0,0.00019452,2]
[313840702,1707749441955,-500.0,0.00019452,2]
[313840703,1707749441966,-500.0,0.00019452,2]
[313840704,1707749441976,-1577.24,0.00019452,2]
[313840705,1707749441986,-797.49,0.00019452,2]
[313840706,1707749441995,-1776.27,0.00019452,2]
[313840707,1707749442005,-500.0,0.00019452,2]
[313840708,1707749442015,-500.0,0.00019452,2]
[313840709,1707749442025,-500.0,0.00019452,2]
[313840710,1707749442035,-500.0,0.00019452,2]
[313840711,1707749442044,-626.13,0.00019452,2]
[313840712,1707749442054,-500.0,0.00019452,2]
[313840713,1707749442064,-500.0,0.00019452,2]
[313840714,1707749442074,-500.0,0.00019452,2]
[313840715,1707749442084,-987.16,0.00019452,2]
[313840716,1707749442094,-500.0,0.00019452,2]
[313840717,1707749442104,-500.0,0.00019452,2]
[313840718,1707749442114,-500.0,0.00019452,2]
[313840719,1707749442124,-500.0,0.00019452,2]
[313840720,1707749442134,-500.0,0.00019452,2]
[313840721,1707749442144,-500.0,0.00019452,2]
[313840722,1707749442154,-511.4034401,0.00019452,2]
[313840723,1707749442164,-500.0,0.00019452,2]
[313840724,1707749442173,-500.0,0.00019452,2]
[313840726,1707749442183,-500.0,0.00019452,2]
[313840728,1707749442192,-500.0,0.00019452,2]
[313840730,1707749442202,-500.0,0.00019452,2]
[313840732,1707749442211,-500.0,0.00019452,2]
[313840734,1707749442220,-505.11379251,0.00019452,2]
[313840736,1707749442230,-4534.19638727,0.00019452,2]
[313840739,1707749442245,-2247.90254549,0.00019452,2]
[313840741,1707749442263,-532.92106724,0.00019452,2]
[313840743,1707749442272,-500.0,0.00019452,2]
[313840745,1707749442281,-10.82056001,0.00019452,2]
[313840749,1707749442304,-489.17943999,0.00019452,2]
[313840751,1707749442313,-745.15527038,0.00019452,2]
[313840922,1707749443736,-558.45632322,0.00019178,2]
[313840925,1707749443748,-887.34367678,0.00019178,2]
[313840926,1707749443759,-5308.04766873,0.00019442,3]
[313842091,1707749456036,-500.0,0.00019178,2]
[313842092,1707749456046,-500.0,0.00019178,2]
[313842093,1707749456055,-731.03,0.00019178,2]
[313842094,1707749456064,-920.37233127,0.00019442,3]
[313842095,1707749456073,-5303.21,0.00019442,3]
[313842096,1707749456082,-649.00119694,0.0001945,2]
[313842097,1707749456091,-154.86062544,0.0001945,2]
[313842098,1707749456100,-609.8958986,0.00019451,3]
[313845345,1707749926932,-154.86062544,0.00018262,2]
[313845346,1707749926956,-590.54708248,0.00018262,2]
[313845347,1707749926979,-4552.814422,0.00018263,2]
[313845348,1707749927002,-176.61314,0.00018417,2]
[313845349,1707749993826,9625.6,0.00018417,2]
[313845353,1707750286492,176.61314,0.00018197,2]
[313845415,1707750633727,-297.82120474,0.000189,2]
[313845417,1707750633736,-170.29779386,0.00019078,2]
[313845419,1707750633746,-470.57044486,0.00019176,2]
[313845421,1707750633755,-356.3387052,0.00019176,2]
[313845423,1707750633764,-539.81883984,0.00019176,2]
[313845425,1707750633773,-250.66874813,0.00019177,2]
[313845427,1707750633782,-589.40026289,0.00019177,2]
[313845428,1707750633791,-500.0,0.00019178,2]
[313845430,1707750633801,-134.82925646,0.00019178,2]
[313845436,1707750633832,-365.17074354,0.00019178,2]
[313845438,1707750633841,-500.0,0.00019178,2]
[313845440,1707750633851,-500.0,0.00019178,2]
[313845441,1707750633860,-500.0,0.00019178,2]
[313845443,1707750633870,-433.96855876,0.00019178,2]
[313846070,1707750640011,9841.14588598,0.00018197,2]
[313846096,1707750640244,-66.03144124,0.00019178,2]
[313846099,1707750640253,-500.0,0.00019178,2]
[313846102,1707750640263,-573.95,0.00019178,2]
[313846105,1707750640272,-500.0,0.00019178,2]
[313846108,1707750640281,-180.08129055,0.00019178,2]
[313846111,1707750640291,-500.0,0.00019178,2]
[313846114,1707750640300,-1385.56,0.00019178,2]
[313846117,1707750640309,-700.57,0.00019178,2]
[313846119,1707750640318,-627.53974214,0.00019178,2]
[313846122,1707750640328,-1628.24,0.00019178,2]
[313846125,1707750640337,-500.0,0.00019178,2]
[313846128,1707750640346,-500.0,0.00019178,2]
[313846131,1707750640356,-500.0,0.00019178,2]
[313846134,1707750640366,-500.0,0.00019178,2]
[313846137,1707750640375,-500.0,0.00019178,2]
[313846140,1707750640384,-904.89,0.00019178,2]
[313846143,1707750640393,-507.96,0.00019178,2]
[313846146,1707750640402,-500.0,0.00019178,2]
[313846149,1707750640411,-500.0,0.00019178,2]
[313846152,1707750640419,-500.0,0.00019178,2]
[313846155,1707750640428,-500.0,0.00019178,2]
[313846158,1707750640437,-500.0,0.00019178,2]
[313846161,1707750640446,-500.0,0.00019178,2]
[313846163,1707750640455,-5712.01611123,0.00019178,2]
[313846241,1707750641192,-1337.65388877,0.00019178,2]
[313846243,1707750641201,-500.0,0.00019178,2]
[313846245,1707750641211,-500.0,0.00019178,2]
[313846247,1707750641220,-500.0,0.00019178,2]
[313846249,1707750641232,-870.7,0.00019178,2]
[313846251,1707750641241,-500.0,0.00019178,2]
[313846253,1707750641250,-500.0,0.00019178,2]
[313846255,1707750641259,-610.91,0.00019178,2]
[313846257,1707750641268,-572.76,0.00019178,2]
[313846259,1707750641278,-320.90632725,0.00019178,2]
[313846261,1707750641287,-500.0,0.00019178,2]
[313846263,1707750641296,-1599.63,0.00019178,2]
[313846265,1707750641305,-500.0,0.00019178,2]
[313846267,1707750641314,-277.51613604,0.00019178,2]
[313846742,1707750647901,154.86062544,0.00017259,3]
[313846903,1707750769254,300.0,0.00028,120]
[313846965,1707750909745,549.0,0.0001855,2]
[313847450,1707751529907,155.21266715,0.0001855,2]
[313847456,1707751549860,204.28077411,0.0001855,2]
[313847459,1707751558098,14095.50004732,0.0001855,2]
[313847570,1707751832006,-324.00807231,0.00018541,2]
[313847572,1707751832016,-261.26593856,0.00018542,2]
[313847574,1707751832028,-4462.33135652,0.00018549,2]
[313847576,1707751832038,-154.38043579,0.0001855,2]
[313847579,1707751832053,-2447.68932386,0.0001855,2]
[313847671,1707751838097,-2596.90357907,0.0001855,2]
[313847672,1707751838109,-1002.64942864,0.0001855,2]
[313847673,1707751838218,-12000.0,0.0001855,2]
[313847703,1707751841304,-359.50100004,0.0001855,2]
[313847706,1707751841379,-13981.7941495,0.0001855,2]
[313847707,1707751841388,-198.54746982,0.000189,2]
[313847708,1707751841399,-632.68113411,0.00018971,2]
[313847709,1707751841408,-170.29779385,0.00019078,2]
[313847710,1707751841417,-154.92253873,0.00019177,2]
[313847711,1707751841426,-500.0,0.00019178,2]
[313847712,1707751841435,-500.0,0.00019178,2]
[313847713,1707751841445,-500.0,0.00019178,2]
[313847714,1707751841454,-500.0,0.00019178,2]
[313847715,1707751841463,-500.0,0.00019178,2]
[313847716,1707751841474,-500.0,0.00019178,2]
[313847717,1707751841486,-500.0,0.00019178,2]
[313847718,1707751841496,-501.80100016,0.00019178,2]
[313847719,1707751841506,-500.0,0.00019178,2]
[313847720,1707751841515,-578.12,0.00019178,2]
[313847721,1707751841525,-500.0,0.00019178,2]
[313847722,1707751841534,-500.0,0.00019178,2]
[313847723,1707751841543,-500.0,0.00019178,2]
[313847724,1707751841553,-404.34782388,0.00019178,2]
[313847725,1707751841562,-500.0,0.00019178,2]
[313847726,1707751841571,-500.0,0.00019178,2]
[313847727,1707751841580,-500.0,0.00019178,2]
[313847728,1707751841589,-500.0,0.00019178,2]
[313847729,1707751841599,-500.0,0.00019178,2]
[313847730,1707751841608,-500.0,0.00019178,2]
[313847731,1707751841617,-1593.69,0.00019178,2]
[313847732,1707751841626,-500.0,0.00019178,2]
[313847733,1707751841636,-585.45,0.00019178,2]
[313847734,1707751841645,-500.0,0.00019178,2]
[313847735,1707751841654,-1532.98,0.00019178,2]
[313847736,1707751841663,-3719.17,0.00019178,2]
[313847737,1707751841672,-500.0,0.00019178,2]
[313847738,1707751841682,-824.24208823,0.00019178,2]
[313847739,1707751841694,-261.1484091,0.00019178,2]
[313847740,1707751841705,-4737.96950267,0.00019178,2]
[313847741,1707751841715,-176.52988658,0.00019178,2]
[313847742,1707751841725,-274.04835779,0.00019178,2]
[313847743,1707751841744,-274.85164221,0.00019178,2]
[313847744,1707751841755,-795.03024146,0.00019178,2]
[313847779,1707751844887,-741.96975854,0.00019178,2]
[313847781,1707751844897,-500.0,0.00019178,2]
[313847783,1707751844906,-1069.33459386,0.00019178,2]
[313848977,1707751871906,763.3743027,0.00017258,2]
[313848978,1707751903072,-154.86062544,0.00018549,2]
[313848979,1707751903127,-2611.74392492,0.0001855,2]
[313848980,1707751903174,-155.0156633,0.0001855,2]
[313848982,1707751929062,250.0,0.00018284,2]
[313848984,1707751947341,154.86062544,0.0001855,2]
[313848985,1707751963259,253.22428243,0.0001855,2]
[313849000,1707752438034,8498.67466481,0.00018177,2]
[313849001,1707752438057,16401.32533519,0.00018177,2]
[313849005,1707752686738,4713.5022921,0.0001855,2]
[313849047,1707752744090,-160.55683341,0.00018611,2]
[313849048,1707752744110,-150.0,0.000189,2]
[313849049,1707752744129,-2974.88757101,0.00019175,2]
[313849050,1707752744150,-261.0754653,0.00019176,2]
[313849051,1707752744169,-155.12707126,0.00019176,2]
[313849052,1707752744189,-1859.09579688,0.00019176,2]
[313849053,1707752744209,-748.51563919,0.00019176,3]
[313849054,1707752744228,-323.80033065,0.00019177,2]
[313849055,1707752744246,-622.36860432,0.00019178,2]
[313849056,1707752744266,-500.0,0.00019178,2]
[313849057,1707752744286,-500.0,0.00019178,2]
[313849058,1707752744305,-500.0,0.00019178,2]
[313849059,1707752744325,-500.0,0.00019178,2]
[313849060,1707752744344,-500.0,0.00019178,2]
[313849061,1707752744364,-1535.76,0.00019178,2]
[313849062,1707752744384,-500.0,0.00019178,2]
[313849063,1707752744403,-500.0,0.00019178,2]
[313849064,1707752744424,-500.0,0.00019178,2]
[313849065,1707752744443,-500.0,0.00019178,2]
[313849066,1707752744463,-1327.83,0.00019178,2]
[313849067,1707752744483,-671.38,0.00019178,2]
[313849068,1707752744503,-1603.64,0.00019178,2]
[313849069,1707752744527,-500.0,0.00019178,2]
[313849070,1707752744546,-500.0,0.00019178,2]
[313849071,1707752744566,-500.0,0.00019178,2]
[313849072,1707752744586,-500.0,0.00019178,2]
[313849073,1707752744606,-500.0,0.00019178,2]
[313849074,1707752744629,-14215.96,0.00019178,2]
[313849075,1707752744650,-500.0,0.00019178,2]
[313849076,1707752744669,-500.0,0.00019178,2]
[313849077,1707752744689,-607.35,0.00019178,2]
[313849078,1707752744711,-500.0,0.00019178,2]
[313849079,1707752744732,-500.0,0.00019178,2]
[313849080,1707752744753,-6975.57,0.00019178,2]
[313849081,1707752744775,-500.0,0.00019178,2]
[313849082,1707752744795,-500.0,0.00019178,2]
[313849083,1707752744814,-151.0,0.00019178,2]
[313849084,1707752744835,-3726.88,0.00019178,2]
[313849085,1707752744856,-5749.83,0.00019178,2]
[313849086,1707752744876,-500.0,0.00019178,2]
[313849087,1707752744896,-1597.08,0.00019178,2]
[313849088,1707752744916,-500.0,0.00019178,2]
[313849089,1707752744937,-1517.01,0.00019178,2]
[313849090,1707752744958,-612.39,0.00019178,2]
[313849091,1707752744978,-500.0,0.00019178,2]
[313849092,1707752744998,-570.87,0.00019178,2]
[313849093,1707752745023,-2781.22,0.00019178,2]
[313849094,1707752745046,-926.44,0.00019178,2]
[313849095,1707752745070,-1127.95,0.00019178,2]
[313849096,1707752745093,-320.90632725,0.00019178,2]
[313849097,1707752745116,-500.0,0.00019178,2]
[313849098,1707752745138,-900.11,0.00019178,2]
[313849099,1707752745160,-2128.33,0.00019178,2]
[313849100,1707752745180,-500.0,0.00019178,2]
[313849101,1707752745202,-500.0,0.00019178,2]
[313849102,1707752745223,-1509.2,0.00019178,2]
[313849103,1707752745246,-626.0,0.00019178,2]
[313849104,1707752745270,-500.0,0.00019178,2]
[313849105,1707752745292,-10621.62,0.00019178,2]
[313849106,1707752745313,-500.0,0.00019178,2]
[313849107,1707752745333,-500.0,0.00019178,2]
[313849108,1707752745353,-259.77473987,0.00019178,2]
[313849109,1707752745375,-1522.35,0.00019178,2]
[313849110,1707752745395,-8300.22164086,0.00019178,2]
[313849111,1707752801225,-2464.67835914,0.00019178,2]
[313849112,1707752801247,-1313.62,0.00019178,2]
[313849113,1707752801268,-500.0,0.00019178,2]
[313849114,1707752801289,-500.0,0.00019178,2]
[313849115,1707752801313,-500.0,0.00019178,2]
[313849116,1707752801334,-500.0,0.00019178,2]
[313849117,1707752801355,-505.23460937,0.00019178,2]
[313849118,1707752801377,-500.0,0.00019178,2]
[313849119,1707752801538,-500.0,0.00019178,2]
[313849120,1707752801561,-500.0,0.00019178,2]
[313849121,1707752801583,-260.85461635,0.00019178,2]
[313849122,1707752801606,-500.0,0.00019178,2]
[313849123,1707752801629,-16.12323336,0.00019178,2]
[313849124,1707752829106,-2479.07297585,0.00019177,2]
[313849125,1707752829130,-7592.42676664,0.00019178,2]
[313849126,1707752829150,-500.0,0.00019178,2]
[313849127,1707752829171,-500.0,0.00019178,2]
[313849128,1707752829194,-591.19612144,0.00019178,2]
[313849129,1707752829216,-425.10550484,0.00019178,2]
[313849130,1707752829235,-500.0,0.00019178,2]
[313849131,1707752829258,-680.43,0.00019178,2]
[313849132,1707752829281,-954.03,0.00019178,2]
[313849133,1707752829300,-516.04111056,0.00019178,2]
[313849134,1707752829320,-210.93574206,0.00019178,2]
[313849135,1707752829343,-500.0,0.00019178,2]
[313849136,1707752829364,-1530.53,0.00019178,2]
[313849137,1707752829385,-500.0,0.00019178,2]
[313849138,1707752829406,-582.04,0.00019178,2]
[313849139,1707752829426,-500.0,0.00019178,2]
[313849140,1707752829449,-6684.92,0.00019178,2]
[313849141,1707752829469,-500.0,0.00019178,2]
[313849142,1707752829489,-1539.36,0.00019178,2]
[313849143,1707752829511,-3571.59,0.00019178,2]
[313849144,1707752829531,-500.0,0.00019178,2]
[313849145,1707752829553,-5510.25,0.00019178,2]
[313849146,1707752829574,-13623.63,0.00019178,2]
[313849147,1707752829595,-168.923902,0.00019178,2]
[313849148,1707752829616,-166.666666,0.00019178,2]
[313849149,1707752829641,-2621.00386489,0.00019256,2]
[313849150,1707752829665,-7052.88,0.00019342,3]
[313849151,1707752829686,-1859.09579688,0.0001935,2]
[313849152,1707752829708,-409.942721,0.00019352,2]
[313849153,1707752829732,-409.942721,0.00019352,2]
[313849154,1707752829752,-151.0,0.00019352,2]
[313849155,1707752829773,-640.60015684,0.00019352,2]
[313849156,1707752830102,-38647.34994293,0.00019352,2]
[313849157,1707752830128,-200.1182246,0.000194,2]
[313849158,1707752830149,-1358.70066073,0.00019442,5]
[313849159,1707752830169,-295.90443276,0.0001945,2]
[313849160,1707752830188,-2717.98041473,0.0001945,5]
[313849161,1707752830208,-284.47275005,0.00019451,3]
[313849162,1707752830231,-250.0,0.00019451,2]
[313849163,1707752830381,-500.0,0.00019452,2]
[313849164,1707752830403,-500.0,0.00019452,2]
[313849165,1707752830424,-500.0,0.00019452,2]
[313849166,1707752830444,-500.0,0.00019452,2]
[313849167,1707752830465,-500.0,0.00019452,2]
[313849168,1707752830486,-500.0,0.00019452,2]
[313849169,1707752830509,-409.942721,0.00019452,2]
[313849170,1707752830529,-409.942721,0.00019452,2]
[313849171,1707752830552,-409.942721,0.00019452,2]
[313849172,1707752830573,-409.942721,0.00019452,2]
[313849173,1707752830601,-409.942721,0.00019452,2]
[313849174,1707752830623,-409.942721,0.00019452,2]
[313849175,1707752830644,-409.942721,0.00019452,2]
[313849176,1707752830669,-409.942721,0.00019452,2]
[313849177,1707752830690,-1327.83,0.00019452,2]
[313849178,1707752830710,-671.38,0.00019452,2]
[313849179,1707752830731,-1603.64,0.00019452,2]
[313849180,1707752830752,-500.0,0.00019452,2]
[313849181,1707752830771,-500.0,0.00019452,2]
[313849182,1707752830790,-500.0,0.00019452,2]
[313849183,1707752830811,-500.0,0.00019452,2]
[313849184,1707752830833,-500.0,0.00019452,2]
[313849185,1707752830858,-500.0,0.00019452,2]
[313849186,1707752830880,-500.0,0.00019452,2]
[313849187,1707752830901,-500.0,0.00019452,2]
[313849188,1707752830923,-500.0,0.00019452,2]
[313849189,1707752830944,-151.0,0.00019452,2]
[313849190,1707752830965,-151.0,0.00019452,2]
[313849191,1707752830991,-151.0,0.00019452,2]
[313849192,1707752831015,-151.0,0.00019452,2]
[313849193,1707752831037,-500.0,0.00019452,2]
[313849194,1707752831058,-1517.01,0.00019452,2]
[313849195,1707752831080,-612.39,0.00019452,2]
[313849196,1707752831104,-570.87,0.00019452,2]
[313849197,1707752831124,-2781.22,0.00019452,2]
[313849198,1707752831149,-926.44,0.00019452,2]
[313849199,1707752831170,-1127.95,0.00019452,2]
[313849200,1707752831191,-900.11,0.00019452,2]
[313849201,1707752831212,-2128.33,0.00019452,2]
[313849202,1707752831233,-500.0,0.00019452,2]
[313849203,1707752831256,-500.0,0.00019452,2]
[313849204,1707752831277,-1509.2,0.00019452,2]
[313849205,1707752831298,-626.0,0.00019452,2]
[313849206,1707752831321,-10621.62,0.00019452,2]
[313849207,1707752831345,-342.90716355,0.00019452,2]
[313849208,1707752831367,-500.0,0.00019452,2]
[313849209,1707752831390,-1522.35,0.00019452,2]
[313849210,1707752831413,-10764.9,0.00019452,2]
[313849211,1707752831435,-1313.62,0.00019452,2]
[313849212,1707752831458,-500.0,0.00019452,2]
[313849213,1707752831486,-500.0,0.00019452,2]
[313849214,1707752831509,-500.0,0.00019452,2]
[313849215,1707752831531,-500.0,0.00019452,2]
[313849216,1707752831555,-500.0,0.00019452,2]
[313849217,1707752831577,-500.0,0.00019452,2]
[313849218,1707752831602,-151.87054299,0.00019452,2]
[313849219,1707752831625,-7608.55,0.00019452,2]
[313849220,1707752831647,-500.0,0.00019452,2]
[313849221,1707752831671,-500.0,0.00019452,2]
[313849222,1707752831691,-500.0,0.00019452,2]
[313849223,1707752831712,-680.43,0.00019452,2]
[313849224,1707752831735,-954.03,0.00019452,2]
[313849225,1707752831756,-500.0,0.00019452,2]
[313849226,1707752831779,-1530.53,0.00019452,2]
[313849227,1707752831800,-500.0,0.00019452,2]
[313849228,1707752831821,-582.04,0.00019452,2]
[313849229,1707752831846,-500.0,0.00019452,2]
[313849230,1707752831867,-6684.92,0.00019452,2]
[313849231,1707752831887,-500.0,0.00019452,2]
[313849232,1707752831908,-1539.36,0.00019452,2]
[313849233,1707752831929,-3571.59,0.00019452,2]
[313849234,1707752831949,-500.0,0.00019452,2]
[313849235,1707752831970,-5510.25,0.00019452,2]
[313849236,1707752831992,-13623.63,0.00019452,2]
[313849237,1707752832011,-1114.9970642,0.000195,2]
[313849238,1707752832031,-200.1182246,0.000195,2]